bitfinex/quotes_SOLUSD_20241028
["timestamp","ask_amount","ask_price","bid_price","bid_amount"]
[1730103848077,14.60536842,176.76,176.68,6.537]
[1730103848282,14.60536842,176.76,176.72,23.776884]
[1730103850906,5.6569,176.78,176.72,38.38325242]
[1730103851210,28.94796842,176.77,176.72,38.38325242]
[1730103852008,0.1,176.84,176.72,43.581884]
[1730103852009,5.6557,176.82,176.72,43.581884]
[1730103852214,5.6557,176.82,176.76,23.776884]
[1730103852392,5.6548,176.84,176.77,8.94796842]
[1730103852709,8.94796842,176.82,176.77,8.94796842]
[1730103852908,8.94796842,176.83,176.78,29.433484]
[1730103853295,8.94796842,176.83,176.78,38.38145242]
[1730103853614,14.60276842,176.84,176.78,38.38145242]
[1730103854290,8.94796842,176.83,176.78,52.52325242]
[1730103854612,14.60306842,176.83,176.78,52.52325242]
[1730103855798,14.60276842,176.84,176.78,52.52325242]
[1730103856916,5.6548,176.84,176.78,52.52325242]
[1730103857094,14.60246842,176.85,176.8,14.60406842]
[1730103857414,85.7185,176.89,176.81,8.94796842]
[1730103857590,28.94796842,176.87,176.83,23.776884]
[1730103857784,14.60146842,176.88,176.83,23.776884]
[1730103857990,14.60146842,176.88,176.83,32.72485242]
[1730103858218,8.94796842,176.89,176.83,32.72485242]
[1730103858507,14.60116842,176.89,176.84,8.94796842]
[1730103858710,10.06154845,176.91,176.85,23.776884]
[1730103858896,19.00951687,176.91,176.85,32.72485242]
[1730103859099,19.00951687,176.91,176.83,6.0799]
[1730103859100,14.60026842,176.92,176.87,29.430684]
[1730103859301,14.59996842,176.93,176.89,23.776884]
[1730103859795,8.94796842,176.92,176.88,23.776884]
[1730103859995,8.94796842,176.91,176.88,23.776884]
[1730103861117,8.94796842,176.92,176.88,23.776884]
[1730103862999,14.59996842,176.93,176.88,23.776884]
[1730103863831,8.94796842,176.92,176.88,23.776884]
[1730103865226,14.60026842,176.92,176.88,23.776884]
[1730103865825,8.94796842,176.91,176.88,23.776884]
[1730103866320,14.60136842,176.89,176.84,14.1369]
[1730103866514,8.94796842,176.88,176.84,14.1369]
[1730103867297,8.94796842,176.87,176.84,14.1369]
[1730103867492,8.94796842,176.86,176.84,14.1369]
[1730103868996,8.94796842,176.86,176.85,23.776884]
[1730103869618,8.94796842,176.86,176.82,5.6554]
[1730103870813,8.94796842,176.86,176.83,23.776884]
[1730103871005,8.94796842,176.86,176.82,23.776884]
[1730103871420,8.94796842,176.83,176.78,23.776884]
[1730103871616,8.94796842,176.83,176.78,32.72485242]
[1730103871818,8.94796842,176.84,176.78,32.72485242]
[1730103872514,8.94796842,176.84,176.79,14.60436842]
[1730103872693,8.94796842,176.84,176.8,23.776884]
[1730103873418,14.60246842,176.85,176.8,23.776884]
[1730103873720,14.60246842,176.85,176.8,29.432784]
[1730103873925,8.94796842,176.85,176.8,52.52095242]
[1730103874105,8.94796842,176.86,176.81,8.94796842]
[1730103874425,20.0,176.85,176.82,23.776884]
[1730103874807,14.60206842,176.87,176.82,29.432184]
[1730103875008,76.2539,176.93,176.86,23.776884]
[1730103875209,14.59986842,176.93,176.88,32.72485242]
[1730103875424,5.6519,176.93,176.88,32.72485242]
[1730103875612,14.59886842,176.96,176.91,32.72485242]
[1730103876304,8.94796842,176.95,176.91,23.776884]
[1730103877001,8.94796842,176.94,176.91,23.776884]
[1730103877816,8.94796842,176.95,176.91,23.776884]
[1730103878319,8.94796842,176.94,176.91,23.776884]
[1730103879226,8.94796842,176.93,176.91,23.776884]
[1730103880808,8.94796842,176.93,176.9,23.776884]
[1730103881622,14.59956842,176.94,176.9,23.776884]
[1730103881818,20.0,176.93,176.9,23.776884]
[1730103882499,20.0,176.93,176.9,29.429684]
[1730103883434,20.0,176.93,176.9,23.776884]
[1730103885327,28.94796842,176.93,176.9,23.776884]
[1730103890811,14.59996842,176.93,176.9,23.776884]
[1730103892530,8.94796842,176.94,176.9,23.776884]
[1730103893815,14.59976842,176.94,176.9,23.776884]
[1730103895333,14.59976842,176.94,176.89,23.776884]
[1730103895527,8.94796842,176.92,176.89,23.776884]
[1730103895727,8.94796842,176.91,176.89,23.776884]
[1730103895923,8.94796842,176.91,176.86,14.60206842]
[1730103896136,8.94796842,176.88,176.83,5.6549]
[1730103896316,8.94796842,176.86,176.82,20.5159]
[1730103896517,8.94796842,176.86,176.82,14.1384]
[1730103896918,8.94796842,176.84,176.79,15.0633]
[1730103897118,70.0,176.89,176.79,15.0633]
[1730103897119,8.94796842,176.83,176.79,15.0633]
[1730103897331,8.94796842,176.83,176.78,14.60456842]
[1730103897534,14.60296842,176.84,176.78,14.60456842]
[1730103897715,8.94796842,176.82,176.77,23.09046842]
[1730103898126,8.94796842,176.82,176.77,28.74746842]
[1730103898338,28.94796842,176.83,176.77,28.74746842]
[1730103898638,8.94796842,176.82,176.77,19.7995]
[1730103898836,8.94796842,176.82,176.77,28.74746842]
[1730103899221,34.60336842,176.83,176.77,28.74746842]
[1730103899526,8.94796842,176.82,176.77,28.74746842]
[1730103899730,8.94796842,176.82,176.78,23.776884]
[1730103900318,14.60336842,176.82,176.78,23.776884]
[1730103900627,8.94796842,176.81,176.77,14.1425]
[1730103901333,14.60336842,176.82,176.77,14.1425]
[1730103902148,20.0,176.83,176.78,23.776884]
[1730103902325,20.0,176.83,176.78,32.72485242]
[1730103902525,8.94796842,176.86,176.8,8.94796842]
[1730103902729,8.94796842,176.86,176.81,23.776884]
[1730103903329,8.94796842,176.87,176.81,32.72485242]
[1730103903537,22.4698,176.91,176.84,8.94796842]
[1730103903844,14.60136842,176.89,176.84,8.94796842]
[1730103904224,8.94796842,176.91,176.86,8.94796842]
[1730103904425,14.59986842,176.93,176.87,32.72485242]
[1730103905545,8.94796842,176.94,176.89,8.94796842]
[1730103905729,8.94796842,176.93,176.89,23.776884]
[1730103905937,14.59956842,176.94,176.89,38.37775242]
[1730103906138,14.59956842,176.94,176.89,32.72485242]
[1730103906644,20.0,176.93,176.89,23.776884]
[1730103906845,33.96578199,176.93,176.89,23.776884]
[1730103907518,39.61778199,176.93,176.89,23.776884]
[1730103908448,13.96578199,176.92,176.89,23.776884]
[1730103910248,19.61808199,176.92,176.88,23.776884]
[1730103910947,13.96578199,176.9,176.85,13.96578199]
[1730103911125,13.96578199,176.89,176.84,19.62058199]
[1730103911847,19.61898199,176.89,176.84,19.62058199]
[1730103912347,19.61898199,176.89,176.85,23.776884]
[1730103912732,13.96578199,176.86,176.77,16.1032]
[1730103912933,13.96578199,176.84,176.79,13.96578199]
[1730103913440,13.96578199,176.85,176.79,13.96578199]
[1730103913642,13.96578199,176.85,176.77,16.1032]
[1730103913643,13.96578199,176.85,176.8,13.96578199]
[1730103914020,19.62048199,176.85,176.8,13.96578199]
[1730103914247,19.62048199,176.85,176.81,23.776884]
[1730103915154,19.62048199,176.85,176.8,13.96578199]
[1730103915155,13.96578199,176.83,176.8,23.776884]
[1730103916957,19.62058199,176.84,176.8,23.776884]
[1730103917148,5.6548,176.84,176.81,23.776884]
[1730103917349,25.6535,176.88,176.83,13.96578199]
[1730103917543,39.61928199,176.88,176.83,13.96578199]
[1730103917849,13.96578199,176.84,176.81,23.776884]
[1730103918052,13.96578199,176.82,176.77,13.96578199]
[1730103918429,13.96578199,176.81,176.76,33.76588199]
[1730103919244,13.96578199,176.8,176.74,19.62368199]
[1730103920142,19.62208199,176.8,176.74,19.62368199]
[1730103920645,19.62208199,176.8,176.75,23.776884]
[1730103920850,19.62208199,176.8,176.75,37.74266599]
[1730103921955,19.62088199,176.83,176.77,37.74266599]
[1730103922132,20.0,176.82,176.78,13.96578199]
[1730103923051,25.6557,176.82,176.78,13.96578199]
[1730103924560,25.6557,176.82,176.77,19.62278199]
[1730103924861,25.6557,176.82,176.78,23.776884]
[1730103926147,39.62148199,176.82,176.78,23.776884]
[1730103926464,25.6557,176.82,176.78,37.74266599]
[1730103928454,25.6557,176.82,176.78,32.7265139]
[1730103928759,34.6053299,176.82,176.78,23.776884]
[1730103929275,34.6053299,176.82,176.73,21.385]
[1730103929276,8.9496299,176.79,176.73,35.9926299]
[1730103929655,8.9496299,176.78,176.73,35.9926299]
[1730103929861,8.9496299,176.79,176.74,8.9496299]
[1730103930167,8.9496299,176.76,176.69,21.6311]
[1730103930356,8.9496299,176.76,176.71,8.9496299]
[1730103931267,14.6070299,176.76,176.71,14.6084299]
[1730103931653,14.6070299,176.76,176.72,23.776884]
[1730103933180,84.6064299,176.78,176.73,8.9496299]
[1730103933352,8.9496299,176.77,176.72,52.5316139]
[1730103934870,14.6068299,176.77,176.72,23.776884]
[1730103935071,14.6068299,176.77,176.72,29.435484]
[1730103935377,14.6068299,176.77,176.72,38.3851139]
[1730103935674,14.6064299,176.78,176.73,8.9496299]
[1730103936671,14.6064299,176.78,176.73,14.6078299]
[1730103937462,14.6064299,176.78,176.74,23.776884]
[1730103939389,14.6064299,176.78,176.74,29.434884]
[1730103942680,8.9496299,176.78,176.74,29.434884]
[1730103942857,14.6064299,176.78,176.74,29.434884]
[1730103944696,14.6060299,176.79,176.74,38.3845139]
[1730103945192,8.9496299,176.78,176.73,23.0954299]
[1730103945491,8.9496299,176.78,176.73,28.7537299]
[1730103945685,8.9496299,176.78,176.73,19.8041]
[1730103946388,14.6065299,176.78,176.73,19.8041]
[1730103947284,8.9496299,176.77,176.73,19.8041]
[1730103947593,14.6067299,176.77,176.73,19.8041]
[1730103948867,14.6067299,176.77,176.69,21.6311]
[1730103949069,14.6067299,176.77,176.72,23.776884]
[1730103949886,8.9496299,176.76,176.71,23.776884]
[1730103950190,8.9496299,176.75,176.7,29.436184]
[1730103950374,8.9496299,176.75,176.7,38.3858139]
[1730103951102,8.9496299,176.76,176.7,38.3858139]
[1730103951278,14.6071299,176.76,176.7,52.5340139]
[1730103952178,14.6071299,176.76,176.71,8.9496299]
[1730103952385,14.6071299,176.76,176.71,14.6085299]
[1730103955170,84.6071299,176.76,176.71,8.9496299]
[1730103956095,84.6071299,176.76,176.71,14.6084299]
[1730103956594,14.6071299,176.76,176.71,14.6084299]
[1730103956770,14.6071299,176.76,176.71,28.7558299]
[1730103957485,5.657,176.77,176.72,32.7265139]
[1730103957684,14.6066299,176.77,176.72,32.7265139]
[1730103957885,5.657,176.77,176.73,8.9496299]
[1730103958092,20.0,176.77,176.73,8.9496299]
[1730103959104,5.6564,176.79,176.75,8.9496299]
[1730103959289,25.6561,176.8,176.76,8.9496299]
[1730103959474,75.6552,176.83,176.77,32.7265139]
[1730103959675,84.6048299,176.83,176.78,8.9496299]
[1730103959993,5.6549,176.84,176.8,8.9496299]
[1730103960368,6.0467,176.88,176.81,8.9496299]
[1730103960575,91.8031,176.89,176.83,8.9496299]
[1730103960770,100.7527299,176.89,176.83,8.9496299]
[1730103960998,91.8031,176.89,176.83,8.9496299]
[1730103961296,100.7527299,176.89,176.83,14.6046299]
[1730103961600,100.7527299,176.89,176.84,8.9496299]
[1730103961916,8.9496299,176.9,176.85,32.7265139]
[1730103962780,14.6027299,176.9,176.85,32.7265139]
[1730103963283,20.0,176.89,176.85,32.7265139]
[1730103963591,28.9496299,176.89,176.85,32.7265139]
[1730103964899,28.9496299,176.89,176.85,23.776884]
[1730103966679,20.0,176.89,176.85,32.7265139]
[1730103967602,20.0,176.9,176.87,23.776884]
[1730103968302,70.0,176.95,176.88,32.7265139]
[1730103968509,78.9496299,176.95,176.9,8.9496299]
[1730103969211,75.6513,176.95,176.91,8.9496299]
[1730103969500,5.651,176.96,176.92,23.776884]
[1730103969680,5.651,176.96,176.92,32.7265139]
[1730103970483,25.65,176.99,176.93,8.9496299]
[1730103970680,20.0,176.97,176.94,23.776884]
[1730103971604,20.0,176.97,176.93,23.776884]
[1730103972099,8.9496299,176.96,176.92,14.1306]
[1730103972308,8.9496299,176.95,176.9,14.6023299]
[1730103972600,8.9496299,176.94,176.89,19.786]
[1730103972806,8.9496299,176.92,176.86,29.5074299]
[1730103973102,8.9496299,176.9,176.86,14.1352]
[1730103973313,8.9496299,176.9,176.86,19.7893]
[1730103974281,8.9496299,176.89,176.84,8.9496299]
[1730103974606,8.9496299,176.91,176.86,8.9496299]
[1730103974783,20.0,176.9,176.87,23.776884]
[1730103976006,28.9496299,176.9,176.86,23.776884]
[1730103976503,8.9496299,176.89,176.85,23.776884]
[1730103976701,8.9496299,176.88,176.85,23.776884]
[1730103980695,14.6031299,176.88,176.85,23.776884]
[1730103982104,8.9496299,176.89,176.85,23.776884]
[1730103983810,8.9496299,176.88,176.85,23.776884]
[1730103984612,14.6031299,176.88,176.85,23.776884]
[1730103985800,14.6031299,176.88,176.84,14.137]
[1730103986511,5.6532,176.89,176.85,32.7265139]
[1730103986718,8.9496299,176.91,176.87,23.776884]
[1730103987103,8.9496299,176.89,176.85,5.6544]
[1730103987407,8.9496299,176.89,176.84,32.7265139]
[1730103987632,70.0,176.92,176.84,32.7265139]
[1730103987633,8.9496299,176.9,176.84,32.7265139]
[1730103988216,8.9496299,176.89,176.84,32.7265139]
[1730103988423,8.9496299,176.89,176.84,29.431584]
[1730103989718,14.6030299,176.89,176.84,29.431584]
[1730103990335,8.9496299,176.88,176.84,29.431584]
[1730103991125,8.9496299,176.89,176.84,29.431584]
[1730103991997,14.6029299,176.89,176.84,29.431584]
[1730103992509,14.6029299,176.89,176.84,38.3812139]
[1730103992927,20.0,176.91,176.85,8.9496299]
[1730103993100,5.6519,176.93,176.89,32.7265139]
[1730103995032,8.9496299,176.96,176.91,8.9496299]
[1730103995515,5.6503,176.98,176.94,8.9496299]
[1730103995721,14.5999299,176.98,176.94,23.776884]
[1730103996298,8.9496299,176.97,176.93,23.776884]
[1730103996527,14.5999299,176.98,176.93,32.7265139]
[1730103996711,20.0,176.97,176.93,32.7265139]
[1730103999241,25.6507,176.97,176.93,32.7265139]
[1730104000736,25.6507,176.97,176.93,23.776884]
[1730104000930,25.6507,176.97,176.93,32.7265139]
[1730104001121,34.6003299,176.97,176.93,23.776884]
[1730104003123,8.9496299,176.96,176.87,20.12549]
[1730104003433,8.9496299,176.96,176.91,23.776884]
[1730104003643,8.9496299,176.95,176.9,8.9496299]
[1730104004310,5.6515,176.95,176.91,8.9496299]
[1730104006130,14.6011299,176.95,176.9,32.7265139]
[1730104006440,5.6515,176.95,176.9,32.7265139]
[1730104006746,14.6011299,176.95,176.9,32.7265139]
[1730104006923,28.9496299,176.94,176.89,8.9496299]
[1730104007126,28.9496299,176.94,176.9,23.776884]
[1730104008139,8.9496299,176.93,176.88,8.9496299]
[1730104008327,8.9496299,176.93,176.87,14.6034299]
[1730104009136,5.6522,176.92,176.87,14.6034299]
[1730104009325,5.6522,176.92,176.88,23.776884]
[1730104010127,14.6018299,176.92,176.87,23.776884]
[1730104010444,14.6018299,176.92,176.87,32.7265139]
[1730104010935,14.6018299,176.92,176.87,23.776884]
[1730104011239,8.9496299,176.91,176.87,23.776884]
[1730104011422,8.9496299,176.91,176.85,14.6040299]
[1730104011622,8.9496299,176.9,176.86,23.776884]
[1730104011933,8.9496299,176.89,176.85,23.776884]
[1730104013245,14.6030299,176.89,176.85,23.776884]
[1730104016239,14.6030299,176.89,176.85,29.431284]
[1730104016939,78.9496299,176.87,176.76,21.7291]
[1730104017125,8.9496299,176.84,176.79,8.9496299]
[1730104017725,14.6045299,176.84,176.79,5.6562]
[1730104017942,14.6045299,176.84,176.79,14.6058299]
[1730104018145,14.6045299,176.84,176.8,23.776884]
[1730104018444,14.6045299,176.84,176.79,8.9496299]
[1730104018745,14.6045299,176.84,176.79,14.6060299]
[1730104020244,5.6549,176.84,176.8,8.9496299]
[1730104020622,14.6045299,176.84,176.79,32.7265139]
[1730104021127,20.0,176.85,176.82,8.9496299]
[1730104021328,20.0,176.85,176.83,8.9496299]
[1730104022524,25.6538,176.87,176.83,8.9496299]
[1730104023335,5.6538,176.87,176.84,8.9496299]
[1730104023834,5.6538,176.87,176.82,5.6552]
[1730104023835,8.9496299,176.92,176.86,8.9496299]
[1730104024044,8.9496299,176.92,176.87,8.9496299]
[1730104024224,5.6522,176.92,176.88,8.9496299]
[1730104024737,14.6015299,176.94,176.89,8.9496299]
[1730104024926,5.6513,176.95,176.91,8.9496299]
[1730104025123,14.6009299,176.95,176.89,8.9496299]
[1730104025325,8.9496299,176.92,176.87,8.9496299]
[1730104025555,8.9496299,176.91,176.86,32.7265139]
[1730104026024,8.9496299,176.9,176.85,23.0857299]
[1730104026226,8.9496299,176.89,176.85,14.1361]
[1730104027021,14.6028299,176.89,176.85,14.1361]
[1730104027657,5.6532,176.89,176.85,14.1361]
[1730104028651,5.6532,176.89,176.85,23.776884]
[1730104028838,5.6532,176.89,176.84,8.9496299]
[1730104029043,8.9496299,176.86,176.79,16.1871]
[1730104029240,8.9496299,176.85,176.8,14.6057299]
[1730104029439,28.9496299,176.87,176.82,8.9496299]
[1730104030252,20.0,176.89,176.85,8.9496299]
[1730104030449,6.0574,176.93,176.82,5.6552]
[1730104030450,19.62196881,176.92,176.87,13.96976881]
[1730104030642,13.96976881,176.9,176.85,13.96976881]
[1730104033254,13.96976881,176.9,176.84,13.96976881]
[1730104033440,19.62296881,176.89,176.84,13.96976881]
[1730104033750,13.96976881,176.88,176.84,23.776884]
[1730104035546,5.6532,176.89,176.84,37.74665281]
[1730104035547,19.62296881,176.89,176.84,37.74665281]
[1730104036132,19.62296881,176.89,176.84,43.40135281]
[1730104037658,13.96976881,176.9,176.85,13.96976881]
[1730104037837,19.62266881,176.9,176.85,13.96976881]
[1730104039665,5.6535,176.88,176.84,29.431584]
[1730104040553,13.96976881,176.85,176.79,16.1871]
[1730104040736,13.96976881,176.84,176.78,20.07116881]
[1730104040940,13.96976881,176.84,176.79,13.96976881]
[1730104041135,13.96976881,176.85,176.79,13.96976881]
[1730104041337,13.96976881,176.84,176.79,19.62606881]
[1730104041742,13.96976881,176.84,176.8,29.432884]
[1730104042867,13.96976881,176.83,176.79,29.433184]
[1730104043341,13.96976881,176.83,176.78,19.62646881]
[1730104043845,19.62506881,176.83,176.78,28.11096881]
[1730104044760,19.62506881,176.83,176.78,33.76766881]
[1730104046545,13.96976881,176.84,176.79,13.96976881]
[1730104046862,19.62456881,176.85,176.8,13.96976881]
[1730104048062,13.96976881,176.84,176.79,43.40295281]
[1730104049964,13.96976881,176.84,176.79,57.54395281]
[1730104050465,19.62456881,176.84,176.79,57.54395281]
[1730104052276,5.6545,176.85,176.8,19.62576881]
[1730104052458,14.60138831,176.85,176.8,14.60288831]
[1730104057251,75.6529,176.9,176.84,8.94688831]
[1730104057464,84.59978831,176.9,176.85,8.94688831]
[1730104057662,8.94688831,176.89,176.84,8.94688831]
[1730104058252,14.60028831,176.89,176.85,23.776884]
[1730104058493,70.0,176.94,176.88,8.94688831]
[1730104058770,21.0097,176.97,176.92,8.94688831]
[1730104058970,8.94688831,176.98,176.92,8.94688831]
[1730104059176,14.59738831,176.98,176.92,8.94688831]
[1730104059495,8.94688831,176.97,176.92,8.94688831]
[1730104060174,8.94688831,176.96,176.91,14.59928831]
[1730104060684,5.6508,176.97,176.91,14.59928831]
[1730104060976,14.59768831,176.97,176.91,14.59928831]
[1730104062681,8.94688831,176.95,176.9,28.73168831]
[1730104062867,8.94688831,176.92,176.87,14.60068831]
[1730104063262,8.94688831,176.95,176.89,8.94688831]
[1730104063469,8.94688831,176.95,176.9,8.94688831]
[1730104064459,5.6515,176.95,176.91,8.94688831]
[1730104065165,20.0,176.96,176.92,8.94688831]
[1730104067795,20.0,176.98,176.94,8.94688831]
[1730104068357,25.6497,177.0,176.95,8.94688831]
[1730104068786,25.6497,177.0,176.94,8.94688831]
[1730104069085,20.0,176.98,176.94,8.94688831]
[1730104069489,34.59738831,176.98,176.93,32.72377231]
[1730104069963,34.59738831,176.98,176.93,23.776884]
[1730104070482,34.59738831,176.98,176.91,8.94688831]
[1730104070483,8.94688831,176.96,176.91,8.94688831]
[1730104071182,8.94688831,176.97,176.92,8.94688831]
[1730104071388,5.6509,176.96,176.92,8.94688831]
[1730104071689,5.6509,176.96,176.91,32.72377231]
[1730104072183,5.6509,176.96,176.92,8.94688831]
[1730104075191,14.59748831,176.97,176.92,8.94688831]
[1730104076689,14.59748831,176.97,176.91,23.776884]
[1730104076690,14.59748831,176.97,176.91,32.72377231]
[1730104077860,14.59748831,176.97,176.92,8.94688831]
[1730104078065,5.6506,176.97,176.92,8.94688831]
[1730104080296,8.94688831,176.96,176.9,14.1322]
[1730104080588,8.94688831,176.95,176.9,23.07908831]
[1730104080989,8.94688831,176.95,176.89,8.94688831]
[1730104081877,8.94688831,176.93,176.87,32.72377231]
[1730104082487,8.94688831,176.93,176.88,8.94688831]
[1730104083099,14.59908831,176.93,176.88,8.94688831]
[1730104083284,5.6522,176.93,176.89,8.94688831]
[1730104085075,14.59908831,176.93,176.88,8.94688831]
[1730104085296,8.94688831,176.9,176.84,14.137]
[1730104085587,8.94688831,176.9,176.84,23.08388831]
[1730104086390,8.94688831,176.89,176.84,28.73868831]
[1730104086695,8.94688831,176.88,176.84,19.7918]
[1730104086902,8.94688831,176.88,176.84,14.137]
[1730104087599,8.94688831,176.87,176.84,14.137]
[1730104090299,8.94688831,176.86,176.8,14.1396]
[1730104090476,8.94688831,176.85,176.8,14.1396]
[1730104090796,20.0,176.87,176.81,8.94688831]
[1730104091004,8.94688831,176.88,176.82,8.94688831]
[1730104091694,8.94688831,176.87,176.82,8.94688831]
[1730104091888,8.94688831,176.87,176.83,23.776884]
[1730104092100,8.94688831,176.88,176.83,23.776884]
[1730104092581,14.60058831,176.88,176.83,29.431884]
[1730104094703,14.60058831,176.88,176.83,38.37877231]
[1730104095206,8.94688831,176.87,176.83,29.431884]
[1730104096689,8.94688831,176.85,176.81,5.6556]
[1730104097087,8.94688831,176.84,176.81,5.6556]
[1730104097787,8.94688831,176.84,176.8,14.1396]
[1730104097988,8.94688831,176.84,176.81,23.776884]
[1730104098590,8.94688831,176.83,176.8,14.1396]
[1730104098790,8.94688831,176.82,176.78,5.6567]
[1730104099394,8.94688831,176.82,176.78,19.7985]
[1730104100186,8.94688831,176.82,176.79,23.776884]
[1730104100398,8.94688831,176.81,176.77,14.82036175]
[1730104101420,14.60258831,176.81,176.77,5.6569]
[1730104102405,14.60258831,176.81,176.76,8.94688831]
[1730104102615,8.94688831,176.81,176.77,5.6569]
[1730104102912,8.94688831,176.82,176.77,28.74638831]
[1730104103508,14.60228831,176.82,176.77,28.74638831]
[1730104105011,25.6548,176.84,176.77,28.74638831]
[1730104105221,8.94688831,176.82,176.77,19.7995]
[1730104106589,8.94688831,176.79,176.75,23.776884]
[1730104106798,75.6551,176.83,176.74,23.776884]
[1730104106799,8.94688831,176.78,176.74,23.776884]
[1730104107314,20.0,176.8,176.74,32.72377231]
[1730104107512,5.6551,176.83,176.75,8.94688831]
[1730104107815,8.94688831,176.81,176.75,8.94688831]
[1730104108019,90.0,176.84,176.76,8.94688831]
[1730104108197,8.94688831,176.82,176.78,5.6567]
[1730104108624,8.94688831,176.81,176.78,5.6567]
[1730104108915,20.0,176.84,176.79,8.94688831]
[1730104109095,8.94688831,176.83,176.78,28.74538831]
[1730104109417,8.94688831,176.81,176.78,19.7985]
[1730104113514,91.4204,176.88,176.8,8.94688831]
[1730104113818,8.94688831,176.87,176.81,8.94688831]
[1730104114198,8.94688831,176.86,176.81,8.94688831]
[1730104115118,14.60118831,176.86,176.81,14.60258831]
[1730104115718,8.94688831,176.85,176.81,5.6557]
[1730104116524,25.6538,176.87,176.81,5.6557]
[1730104116825,13.97949022,176.85,176.81,5.6557]
[1730104118512,5.6539,176.87,176.82,13.97949022]
[1730104118727,11.88129403,176.92,176.85,37.75637422]
[1730104118728,6.5826,176.92,176.85,37.75637422]
[1730104118898,85.4456,176.93,176.87,13.97949022]
[1730104118899,21.0978,176.93,176.87,13.97949022]
[1730104119102,13.97949022,176.88,176.83,13.97949022]
[1730104119301,13.97949022,176.87,176.82,23.776884]
[1730104119500,13.97949022,176.85,176.81,19.7951]
[1730104123300,13.97949022,176.84,176.81,14.1394]
[1730104124003,13.97949022,176.82,176.79,23.776884]
[1730104124200,13.97949022,176.81,176.76,36.20419022]
[1730104124529,13.97949022,176.8,176.76,5.6573]
[1730104125023,13.97949022,176.8,176.75,5.6575]
[1730104125223,13.97949022,176.79,176.75,19.8017]
[1730104125906,13.97949022,176.78,176.75,19.8017]
[1730104126210,13.97949022,176.78,176.72,15.2692]
[1730104126412,13.97949022,176.75,176.7,12.0724]
[1730104126617,70.0,176.79,176.7,5.6591]
[1730104126618,13.97949022,176.73,176.7,5.6591]
[1730104127125,13.97949022,176.73,176.69,5.6594]
[1730104128007,13.97949022,176.74,176.69,19.63889022]
[1730104129005,13.97949022,176.73,176.69,23.776884]
[1730104129228,13.97949022,176.72,176.69,23.776884]
[1730104129412,13.97949022,176.73,176.69,23.776884]
[1730104129621,13.97949022,176.75,176.7,13.97949022]
[1730104130326,13.97949022,176.77,176.72,13.97949022]
[1730104130931,13.97949022,176.78,176.73,37.75637422]
[1730104131128,13.97949022,176.77,176.73,23.776884]
[1730104131910,13.97949022,176.76,176.73,23.776884]
[1730104132134,13.97949022,176.74,176.72,14.1466]
[1730104132335,13.97949022,176.73,176.69,29.436484]
[1730104132916,13.97949022,176.73,176.69,19.8086]
[1730104134232,13.97949022,176.73,176.7,23.776884]
[1730104135331,13.97949022,176.73,176.69,19.8086]
[1730104137011,13.97949022,176.74,176.69,19.8086]
[1730104137413,19.63769022,176.74,176.69,19.8086]
[1730104137614,13.97949022,176.74,176.69,19.8086]
[1730104138640,13.97949022,176.74,176.69,28.12849022]
[1730104139632,13.97949022,176.74,176.7,23.776884]
[1730104139943,13.97949022,176.75,176.7,23.776884]
[1730104140845,13.97949022,176.75,176.71,5.6589]
[1730104142242,13.97949022,176.75,176.71,19.8063]
[1730104142445,8.95656657,176.76,176.71,19.8063]
[1730104142945,8.95656657,176.75,176.71,19.8063]
[1730104144623,8.95656657,176.74,176.71,19.8063]
[1730104145850,8.95656657,176.75,176.71,19.8063]
[1730104148548,8.95656657,176.73,176.71,14.1474]
[1730104149746,8.95656657,176.73,176.71,19.8063]
[1730104150546,8.95656657,176.73,176.71,14.1474]
[1730104151839,8.95656657,176.75,176.71,14.1474]
[1730104153043,8.95656657,176.75,176.71,19.8063]
[1730104154161,8.95656657,176.72,176.68,14.1494]
[1730104155261,8.95656657,176.72,176.68,19.8093]
[1730104156950,8.95656657,176.72,176.68,14.1494]
[1730104157935,8.95656657,176.71,176.68,14.1494]
[1730104159462,8.95656657,176.72,176.68,14.1494]
[1730104162757,15.8718,176.76,176.68,28.76586657]
[1730104163056,28.95656657,176.75,176.7,8.95656657]
[1730104163440,8.95656657,176.74,176.69,32.73345057]
[1730104165060,8.95656657,176.74,176.7,5.6593]
[1730104165554,8.95656657,176.74,176.7,19.8075]
[1730104166770,20.0,176.75,176.7,19.8075]
[1730104166939,8.95656657,176.74,176.7,19.8075]
[1730104170266,8.95656657,176.73,176.7,19.8075]
[1730104177547,5.658,176.74,176.7,19.8075]
[1730104177736,8.95656657,176.73,176.7,19.8075]